[Event "*** Biggest EVER Titled Tuesday"]
[Site "Chess.com"]
[Date "2018.04.17"]
[Round "8"]
[White "AkshatChandra"]
[Black "LyonBeast"]
[Result "1/2-1/2"]
[WhiteElo "2814"]
[BlackElo "2853"]
[TimeControl "180+2"]
[EndTime "14:49:42 PDT"]
[Termination "Game drawn by agreement"]

1. e4 {[%clk 0:03:01.9]} 1... c5 {[%clk 0:03:00.3]} 2. Nf3 {[%clk 0:03:03.3]}
2... d6 {[%clk 0:03:01.1]} 3. d4 {[%clk 0:02:59.2]} 3... cxd4 {[%clk 0:03:03]}
4. Nxd4 {[%clk 0:03:01]} 4... Nf6 {[%clk 0:03:04.2]} 5. Nc3 {[%clk 0:03:02.5]}
5... a6 {[%clk 0:03:05.4]} 6. Be3 {[%clk 0:03:03.6]} 6... Ng4 {[%clk 0:03:04.7]}
7. Bc1 {[%clk 0:03:02.7]} 7... Nf6 {[%clk 0:03:05.7]} 8. h3 {[%clk 0:03:03.4]}
8... e5 {[%clk 0:03:05.3]} 9. Nde2 {[%clk 0:03:04.1]} 9... h5 {[%clk 0:03:05.9]}
10. g3 {[%clk 0:03:04.9]} 10... Nbd7 {[%clk 0:03:04]} 11. Bg2 {[%clk 0:02:57.9]}
11... b5 {[%clk 0:03:04.7]} 12. O-O {[%clk 0:02:43.5]} 12... Bb7 {[%clk
0:03:03.9]} 13. a4 {[%clk 0:02:43]} 13... b4 {[%clk 0:03:03.8]} 14. Nd5 {[%clk
0:02:44.7]} 14... Nxd5 {[%clk 0:03:04.1]} 15. exd5 {[%clk 0:02:46.6]} 15... Be7
{[%clk 0:03:03.3]} 16. c3 {[%clk 0:02:39.9]} 16... bxc3 {[%clk 0:03:03.3]} 17.
Nxc3 {[%clk 0:02:39.2]} 17... g6 {[%clk 0:02:58.3]} 18. Be3 {[%clk 0:02:38.3]}
18... O-O {[%clk 0:02:53.5]} 19. Qb3 {[%clk 0:02:19.3]} 19... Rb8 {[%clk
0:02:52.2]} 20. Ba7 {[%clk 0:02:01]} 20... Nc5 {[%clk 0:02:45.9]} 21. Bxc5
{[%clk 0:01:59.2]} 21... dxc5 {[%clk 0:02:45]} 22. Qc4 {[%clk 0:01:52.2]} 22...
Bc8 {[%clk 0:02:42.9]} 23. Ne4 {[%clk 0:01:46.6]} 23... Bf5 {[%clk 0:02:23.3]}
24. Qxa6 {[%clk 0:01:39.3]} 24... Bxe4 {[%clk 0:02:06.4]} 25. Bxe4 {[%clk
0:01:41.2]} 25... Rxb2 {[%clk 0:02:05.3]} 26. Rfb1 {[%clk 0:01:11.5]} 26... Rb4
{[%clk 0:01:55.8]} 27. Bxg6 {[%clk 0:00:49]} 27... fxg6 {[%clk 0:01:54.3]} 28.
Qxg6+ {[%clk 0:00:50.9]} 28... Kh8 {[%clk 0:01:55.6]} 29. Qh6+ {[%clk
0:00:41.8]} 29... Kg8 {[%clk 0:01:56.6]} 30. Qg6+ {[%clk 0:00:34.6]} 30... Kh8
{[%clk 0:01:57.2]} 31. Qh6+ {[%clk 0:00:30.5]} 1/2-1/2

[Event "*** Biggest EVER Titled Tuesday"]
[Site "Chess.com"]
[Date "2018.04.17"]
[Round "8"]
[White "PchelkinVK"]
[Black "WinnerOleg"]
[Result "1-0"]
[WhiteElo "2428"]
[BlackElo "2304"]
[TimeControl "180+2"]
[EndTime "14:50:14 PDT"]
[Termination "PchelkinVK won by resignation"]

1. d4 {[%clk 0:03:01.9]} 1... Nf6 {[%clk 0:02:59.1]} 2. Nc3 {[%clk 0:03:01.3]}
2... d5 {[%clk 0:02:59.2]} 3. Bf4 {[%clk 0:03:01.4]} 3... e6 {[%clk 0:02:57.4]}
4. Nf3 {[%clk 0:03:02.1]} 4... Bd6 {[%clk 0:02:58.5]} 5. Qd2 {[%clk 0:03:02.6]}
5... O-O {[%clk 0:02:56.1]} 6. O-O-O {[%clk 0:03:02.9]} 6... c5 {[%clk 0:02:49]}
7. dxc5 {[%clk 0:03:03.7]} 7... Bxc5 {[%clk 0:02:47.9]} 8. Bg5 {[%clk
0:03:04.7]} 8... Be7 {[%clk 0:02:28.3]} 9. e4 {[%clk 0:03:04.3]} 9... dxe4
{[%clk 0:02:30.2]} 10. Qf4 {[%clk 0:03:02.7]} 10... Nbd7 {[%clk 0:02:07]} 11.
Bxf6 {[%clk 0:02:42.8]} 11... exf3 {[%clk 0:01:48.3]} 12. Bxe7 {[%clk 0:02:33]}
12... Qxe7 {[%clk 0:01:30.8]} 13. gxf3 {[%clk 0:02:33.3]} 13... e5 {[%clk
0:01:19.8]} 14. Nd5 {[%clk 0:02:26.2]} 14... Qc5 {[%clk 0:01:08]} 15. Qg3 {[%clk
0:02:15.9]} 15... Kh8 {[%clk 0:00:36.3]} 16. Rg1 {[%clk 0:02:06.9]} 16... g6
{[%clk 0:00:36.9]} 17. h4 {[%clk 0:02:07.8]} 17... b6 {[%clk 0:00:23.6]} 18. Bh3
{[%clk 0:01:56.9]} 18... f5 {[%clk 0:00:21.2]} 19. h5 {[%clk 0:01:56.2]} 19...
Rg8 {[%clk 0:00:17.6]} 20. hxg6 {[%clk 0:01:56.4]} 20... Rxg6 {[%clk 0:00:19.5]}
21. Qh4 {[%clk 0:01:30.7]} 21... Rxg1 {[%clk 0:00:20.5]} 22. Rxg1 {[%clk
0:01:32.3]} 22... Bb7 {[%clk 0:00:19.8]} 23. Bxf5 {[%clk 0:01:19.6]} 1-0

[Event "*** Biggest EVER Titled Tuesday"]
[Site "Chess.com"]
[Date "2018.04.17"]
[Round "8"]
[White "KRASAVCHIK2002"]
[Black "lachesisQ"]
[Result "0-1"]
[WhiteElo "2026"]
[BlackElo "2919"]
[TimeControl "180+2"]
[EndTime "14:50:35 PDT"]
[Termination "lachesisQ won by resignation"]

1. e4 {[%clk 0:03:00.6]} 1... b6 {[%clk 0:03:00.5]} 2. d4 {[%clk 0:03:01]} 2...
Bb7 {[%clk 0:02:50]} 3. Bd3 {[%clk 0:03:02]} 3... Nc6 {[%clk 0:02:47]} 4. c3
{[%clk 0:02:59.6]} 4... d5 {[%clk 0:02:48]} 5. exd5 {[%clk 0:02:55.6]} 5... Qxd5
{[%clk 0:02:48.2]} 6. Nf3 {[%clk 0:02:57.5]} 6... O-O-O {[%clk 0:02:48.3]} 7.
O-O {[%clk 0:02:58.5]} 7... Nf6 {[%clk 0:02:45.4]} 8. Nbd2 {[%clk 0:02:54.2]}
8... Qh5 {[%clk 0:02:35.8]} 9. b4 {[%clk 0:02:39]} 9... e5 {[%clk 0:02:35.5]}
10. a4 {[%clk 0:02:40.5]} 10... exd4 {[%clk 0:02:34]} 11. b5 {[%clk 0:02:39.3]}
11... Ne5 {[%clk 0:02:33.6]} 12. Nxe5 {[%clk 0:02:34.9]} 12... Qxe5 {[%clk
0:02:35.5]} 13. Nf3 {[%clk 0:02:33.3]} 13... Qd5 {[%clk 0:02:35.5]} 14. c4
{[%clk 0:02:31.4]} 14... Qh5 {[%clk 0:02:35.9]} 15. a5 {[%clk 0:02:28.8]} 15...
Bd6 {[%clk 0:02:36.4]} 16. h3 {[%clk 0:02:25.5]} 16... Rhe8 {[%clk 0:02:25.4]}
17. axb6 {[%clk 0:02:22.6]} 17... axb6 {[%clk 0:02:24.4]} 18. Bg5 {[%clk
0:02:13.7]} 18... h6 {[%clk 0:02:21.8]} 19. Bf5+ {[%clk 0:01:51.4]} 19... Re6
{[%clk 0:02:20.3]} 20. Bxe6+ {[%clk 0:01:47.8]} 20... fxe6 {[%clk 0:02:21.2]}
21. Bxf6 {[%clk 0:01:47.5]} 21... gxf6 {[%clk 0:02:23.1]} 22. Qe2 {[%clk
0:01:38.5]} 22... Be5 {[%clk 0:01:50.8]} 23. Ra3 {[%clk 0:01:23.9]} 23... Rg8
{[%clk 0:01:50.2]} 24. Rfa1 {[%clk 0:01:03.5]} 24... Qg6 {[%clk 0:01:41.7]} 25.
Ra8+ {[%clk 0:00:51.4]} 25... Bxa8 {[%clk 0:01:40.7]} 26. Rxa8+ {[%clk
0:00:53.3]} 26... Kb7 {[%clk 0:01:36.4]} 27. Rxg8 {[%clk 0:00:52.2]} 27... Qxg8
{[%clk 0:01:38.3]} 28. Nxe5 {[%clk 0:00:53.2]} 28... fxe5 {[%clk 0:01:36.9]} 29.
Qxe5 {[%clk 0:00:54.7]} 29... Qd8 {[%clk 0:01:37.7]} 30. Qe4+ {[%clk 0:00:52.2]}
30... Kb8 {[%clk 0:01:38.4]} 31. Qd3 {[%clk 0:00:53.5]} 31... e5 {[%clk
0:01:39.1]} 32. f3 {[%clk 0:00:54.1]} 32... Qg5 {[%clk 0:01:39.2]} 33. Kf2
{[%clk 0:00:52.6]} 33... h5 {[%clk 0:01:38.1]} 34. Qe4 {[%clk 0:00:50.7]} 34...
h4 {[%clk 0:01:38.7]} 35. Qd3 {[%clk 0:00:50.7]} 35... Qg3+ {[%clk 0:01:39.2]}
36. Kf1 {[%clk 0:00:52]} 36... Qf4 {[%clk 0:01:40.3]} 37. Kf2 {[%clk 0:00:51.9]}
37... Qc1 {[%clk 0:01:40.5]} 38. Qe2 {[%clk 0:00:50.1]} 38... Qc3 {[%clk
0:01:37.3]} 39. Qxe5 {[%clk 0:00:47.2]} 39... Qc2+ {[%clk 0:01:38.6]} 40. Qe2
{[%clk 0:00:47.3]} 40... d3 {[%clk 0:01:39.6]} 0-1

[Event "*** Biggest EVER Titled Tuesday"]
[Site "Chess.com"]
[Date "2018.04.17"]
[Round "8"]
[White "TastyFrenchFries"]
[Black "TregubovP"]
[Result "0-1"]
[WhiteElo "2347"]
[BlackElo "2576"]
[TimeControl "180+2"]
[EndTime "14:50:56 PDT"]
[Termination "TregubovP won by resignation"]

1. e3 {[%clk 0:02:59.3]} 1... c5 {[%clk 0:02:59.4]} 2. Na3 {[%clk 0:02:58.2]}
2... Nf6 {[%clk 0:02:57.5]} 3. g3 {[%clk 0:02:59.5]} 3... d5 {[%clk 0:02:56.9]}
4. Bg2 {[%clk 0:03:00.8]} 4... e5 {[%clk 0:02:56.4]} 5. Ne2 {[%clk 0:03:01.8]}
5... Nc6 {[%clk 0:02:55.2]} 6. O-O {[%clk 0:03:02.5]} 6... Be7 {[%clk
0:02:55.3]} 7. f4 {[%clk 0:03:03.8]} 7... O-O {[%clk 0:02:48.3]} 8. fxe5 {[%clk
0:03:02.8]} 8... Nxe5 {[%clk 0:02:48.2]} 9. d4 {[%clk 0:02:58.5]} 9... Nc6
{[%clk 0:02:42.6]} 10. c3 {[%clk 0:02:56.6]} 10... Re8 {[%clk 0:02:33.7]} 11.
Nc2 {[%clk 0:02:56]} 11... Bf8 {[%clk 0:02:29.9]} 12. Nf4 {[%clk 0:02:51.8]}
12... Bg4 {[%clk 0:02:26]} 13. Qe1 {[%clk 0:02:37.9]} 13... Bf5 {[%clk
0:02:19.4]} 14. Qd1 {[%clk 0:02:19]} 14... Be4 {[%clk 0:02:19.8]} 15. Rf3 {[%clk
0:02:11.8]} 15... Bxf3 {[%clk 0:02:17.3]} 16. Qxf3 {[%clk 0:02:13.7]} 16... Rc8
{[%clk 0:02:12.3]} 17. Nxd5 {[%clk 0:02:09.3]} 17... Nxd5 {[%clk 0:02:11.8]} 18.
Qxd5 {[%clk 0:02:10.9]} 18... Qxd5 {[%clk 0:02:12.4]} 19. Bxd5 {[%clk
0:02:12.8]} 19... cxd4 {[%clk 0:02:13]} 20. exd4 {[%clk 0:02:04.1]} 20... Re2
{[%clk 0:02:11.1]} 21. Ne3 {[%clk 0:01:50.7]} 21... Re8 {[%clk 0:02:11]} 22. Nf1
{[%clk 0:01:39]} 22... Re1 {[%clk 0:02:12]} 23. b4 {[%clk 0:01:19.4]} 23... R8e2
{[%clk 0:01:57.8]} 24. Bb2 {[%clk 0:01:10.6]} 24... Rxa1 {[%clk 0:01:56.1]} 25.
Bxa1 {[%clk 0:01:12.5]} 25... g6 {[%clk 0:01:49.6]} 26. b5 {[%clk 0:00:50]}
26... Nd8 {[%clk 0:01:49.8]} 27. c4 {[%clk 0:00:46.9]} 27... Ne6 {[%clk
0:01:48.8]} 28. c5 {[%clk 0:00:39.2]} 28... Bg7 {[%clk 0:01:48.3]} 29. Bxb7
{[%clk 0:00:16.9]} 29... Bxd4+ {[%clk 0:01:47.6]} 30. Bxd4 {[%clk 0:00:17.8]}
30... Nxd4 {[%clk 0:01:48.4]} 31. c6 {[%clk 0:00:13.4]} 31... Nxb5 {[%clk
0:01:48.1]} 32. h4 {[%clk 0:00:13.3]} 32... Kf8 {[%clk 0:01:47.4]} 33. Ba6
{[%clk 0:00:14.3]} 33... Rb2 {[%clk 0:01:43.6]} 34. Ne3 {[%clk 0:00:15.6]} 34...
Nc7 {[%clk 0:01:43.8]} 35. Bb7 {[%clk 0:00:15]} 35... Ke7 {[%clk 0:01:42.4]} 36.
Nc4 {[%clk 0:00:14.3]} 36... Rxa2 {[%clk 0:01:43]} 37. Kf1 {[%clk 0:00:14.6]}
37... a5 {[%clk 0:01:43.4]} 38. Nb6 {[%clk 0:00:15.7]} 38... a4 {[%clk
0:01:43.4]} 39. Nc8+ {[%clk 0:00:15.2]} 39... Ke6 {[%clk 0:01:43]} 40. Ba6
{[%clk 0:00:14.8]} 40... Nxa6 {[%clk 0:01:42.9]} 0-1

[Event "*** Biggest EVER Titled Tuesday"]
[Site "Chess.com"]
[Date "2018.04.17"]
[Round "8"]
[White "jlandaw"]
[Black "ABDELAZEEZ-M"]
[Result "1-0"]
[WhiteElo "2483"]
[BlackElo "2308"]
[TimeControl "180+2"]
[EndTime "14:51:08 PDT"]
[Termination "jlandaw won by resignation"]

1. e4 {[%clk 0:03:01.3]} 1... c5 {[%clk 0:03:00]} 2. Nc3 {[%clk 0:03:00.4]} 2...
Nc6 {[%clk 0:03:00.5]} 3. g3 {[%clk 0:03:01.7]} 3... g6 {[%clk 0:03:00.8]} 4.
Bg2 {[%clk 0:03:03.3]} 4... Bg7 {[%clk 0:03:02.2]} 5. d3 {[%clk 0:03:04.8]} 5...
d6 {[%clk 0:03:03.2]} 6. f4 {[%clk 0:03:05.9]} 6... h5 {[%clk 0:03:00.4]} 7. h3
{[%clk 0:03:06.4]} 7... e6 {[%clk 0:03:01.1]} 8. Nf3 {[%clk 0:03:07.3]} 8... Nh6
{[%clk 0:03:01.3]} 9. Be3 {[%clk 0:03:04.1]} 9... b6 {[%clk 0:03:00.1]} 10. d4
{[%clk 0:02:57.1]} 10... cxd4 {[%clk 0:02:52.2]} 11. Nxd4 {[%clk 0:02:59]} 11...
Bb7 {[%clk 0:02:48.4]} 12. Nxc6 {[%clk 0:02:56.6]} 12... Bxc6 {[%clk 0:02:49]}
13. Qd2 {[%clk 0:02:58.1]} 13... f5 {[%clk 0:02:47]} 14. O-O-O {[%clk
0:02:45.6]} 14... Ke7 {[%clk 0:02:31]} 15. Rhe1 {[%clk 0:01:53.7]} 15... Rc8
{[%clk 0:02:29.8]} 16. Bd4 {[%clk 0:01:19.8]} 16... Bxd4 {[%clk 0:02:11.8]} 17.
Qxd4 {[%clk 0:01:21.7]} 17... fxe4 {[%clk 0:02:11.9]} 18. Bxe4 {[%clk
0:01:12.8]} 18... Rg8 {[%clk 0:01:39.3]} 19. Bxc6 {[%clk 0:00:52.8]} 19... Rxc6
{[%clk 0:01:39]} 20. Nd5+ {[%clk 0:00:53.6]} 20... Kf7 {[%clk 0:01:33.5]} 21.
Nb4 {[%clk 0:00:31.6]} 21... Nf5 {[%clk 0:01:27.9]} 22. Nxc6 {[%clk 0:00:29.8]}
22... Qc8 {[%clk 0:00:42.8]} 23. Qc4 {[%clk 0:00:30.6]} 23... Re8 {[%clk
0:00:29.4]} 24. g4 {[%clk 0:00:31.5]} 24... hxg4 {[%clk 0:00:28.8]} 25. hxg4
{[%clk 0:00:33.4]} 25... Ng7 {[%clk 0:00:28.3]} 26. Rxd6 {[%clk 0:00:32.6]}
26... Qc7 {[%clk 0:00:23]} 27. Ne5+ {[%clk 0:00:31.2]} 1-0

[Event "*** Biggest EVER Titled Tuesday"]
[Site "Chess.com"]
[Date "2018.04.17"]
[Round "8"]
[White "toad"]
[Black "josephymwale33"]
[Result "0-1"]
[WhiteElo "2196"]
[BlackElo "2171"]
[TimeControl "180+2"]
[EndTime "14:51:08 PDT"]
[Termination "josephymwale33 won by checkmate"]

1. d4 {[%clk 0:03:01.9]} 1... Nf6 {[%clk 0:02:16.4]} 2. c4 {[%clk 0:03:00.7]}
2... e6 {[%clk 0:02:15]} 3. g3 {[%clk 0:03:01.2]} 3... c5 {[%clk 0:02:13.9]} 4.
d5 {[%clk 0:03:01]} 4... exd5 {[%clk 0:02:15.4]} 5. cxd5 {[%clk 0:03:02.3]} 5...
d6 {[%clk 0:02:17.3]} 6. Nc3 {[%clk 0:03:03]} 6... Na6 {[%clk 0:02:17.2]} 7. Bg2
{[%clk 0:03:03.3]} 7... Nc7 {[%clk 0:02:18.5]} 8. a4 {[%clk 0:03:03]} 8... g6
{[%clk 0:02:20.4]} 9. Nf3 {[%clk 0:03:03.7]} 9... Bg7 {[%clk 0:02:22.3]} 10. O-O
{[%clk 0:03:04]} 10... O-O {[%clk 0:02:24.2]} 11. Qc2 {[%clk 0:03:01.6]} 11...
b6 {[%clk 0:02:17.9]} 12. Rd1 {[%clk 0:02:31.8]} 12... Re8 {[%clk 0:02:19.8]}
13. Rb1 {[%clk 0:02:01.9]} 13... Bf5 {[%clk 0:02:20]} 14. Qd2 {[%clk 0:01:29.6]}
14... Bxb1 {[%clk 0:02:09]} 15. Nxb1 {[%clk 0:01:31.5]} 15... Rb8 {[%clk
0:02:06.8]} 16. Nc3 {[%clk 0:01:32.1]} 16... a6 {[%clk 0:02:06.4]} 17. Qc2
{[%clk 0:01:31.6]} 17... b5 {[%clk 0:02:07.4]} 18. axb5 {[%clk 0:01:30.4]} 18...
axb5 {[%clk 0:02:09.3]} 19. b3 {[%clk 0:01:26.6]} 19... b4 {[%clk 0:02:09.6]}
20. Na4 {[%clk 0:01:25.4]} 20... Ncxd5 {[%clk 0:02:10.3]} 21. Ng5 {[%clk
0:01:23.6]} 21... h6 {[%clk 0:02:04.2]} 22. Nxf7 {[%clk 0:01:07.1]} 22... Kxf7
{[%clk 0:02:06.1]} 23. Bxd5+ {[%clk 0:01:07]} 23... Nxd5 {[%clk 0:02:08]} 24.
Rxd5 {[%clk 0:01:08.6]} 24... Qe7 {[%clk 0:02:06.8]} 25. e3 {[%clk 0:00:53.2]}
25... Qe4 {[%clk 0:02:06.4]} 26. Qd1 {[%clk 0:00:50.3]} 26... c4 {[%clk
0:02:03.8]} 27. Rxd6 {[%clk 0:00:48.2]} 27... cxb3 {[%clk 0:02:03.2]} 28. Nc5
{[%clk 0:00:37.1]} 28... Qc4 {[%clk 0:01:59.4]} 29. Nd7 {[%clk 0:00:26.1]} 29...
Rbc8 {[%clk 0:01:51.9]} 30. Nb6 {[%clk 0:00:21.3]} 30... Qxc1 {[%clk 0:01:52]}
31. Nxc8 {[%clk 0:00:20]} 31... Qxd1+ {[%clk 0:01:41.7]} 32. Rxd1 {[%clk
0:00:21.9]} 32... Rxc8 {[%clk 0:01:42.8]} 33. Kg2 {[%clk 0:00:22.6]} 33... b2
{[%clk 0:01:44.7]} 34. Rd7+ {[%clk 0:00:21.8]} 34... Kg8 {[%clk 0:01:44.4]} 35.
h4 {[%clk 0:00:21.5]} 35... b1=Q {[%clk 0:01:44.1]} 36. h5 {[%clk 0:00:22.9]}
36... Qe4+ {[%clk 0:01:44.8]} 37. Kh3 {[%clk 0:00:21.5]} 37... Qf5+ {[%clk
0:01:44.3]} 38. g4 {[%clk 0:00:22.1]} 38... Qxd7 {[%clk 0:01:44.9]} 39. hxg6
{[%clk 0:00:23.8]} 39... Rc2 {[%clk 0:01:44.7]} 40. e4 {[%clk 0:00:22.9]} 40...
Re2 {[%clk 0:01:45.5]} 41. e5 {[%clk 0:00:23.7]} 41... Bxe5 {[%clk 0:01:45.7]}
42. f4 {[%clk 0:00:24.5]} 42... Bd6 {[%clk 0:01:45.7]} 43. g7 {[%clk 0:00:25.9]}
43... Bxf4 {[%clk 0:01:45.6]} 44. Kh4 {[%clk 0:00:24.8]} 44... Rh2# {[%clk
0:01:46.9]} 0-1

[Event "*** Biggest EVER Titled Tuesday"]
[Site "Chess.com"]
[Date "2018.04.17"]
[Round "8"]
[White "GMVallejo"]
[Black "AvitalBor"]
[Result "1/2-1/2"]
[WhiteElo "2755"]
[BlackElo "2602"]
[TimeControl "180+2"]
[EndTime "14:51:27 PDT"]
[Termination "Game drawn by agreement"]

1. Nf3 {[%clk 0:03:01.8]} 1... d5 {[%clk 0:02:58.4]} 2. d4 {[%clk 0:03:02.2]}
2... Nf6 {[%clk 0:02:57.9]} 3. c4 {[%clk 0:03:03.7]} 3... e6 {[%clk 0:02:58.7]}
4. g3 {[%clk 0:03:04.4]} 4... dxc4 {[%clk 0:02:58.2]} 5. Bg2 {[%clk 0:03:04]}
5... Nbd7 {[%clk 0:02:59.6]} 6. O-O {[%clk 0:02:16]} 6... c6 {[%clk 0:02:58.1]}
7. a4 {[%clk 0:02:15.4]} 7... b6 {[%clk 0:02:58.8]} 8. Qc2 {[%clk 0:02:13.1]}
8... Ba6 {[%clk 0:02:53.1]} 9. Nbd2 {[%clk 0:02:04.9]} 9... Rc8 {[%clk
0:02:54.5]} 10. Nxc4 {[%clk 0:01:44.6]} 10... Be7 {[%clk 0:02:53.8]} 11. Nfe5
{[%clk 0:01:41]} 11... Nxe5 {[%clk 0:02:48.2]} 12. dxe5 {[%clk 0:01:38.5]} 12...
Nd7 {[%clk 0:02:40.9]} 13. Nd6+ {[%clk 0:01:28.6]} 13... Bxd6 {[%clk 0:02:39.8]}
14. exd6 {[%clk 0:01:30.5]} 14... O-O {[%clk 0:02:40.8]} 15. Rd1 {[%clk
0:01:30.8]} 15... c5 {[%clk 0:02:38.8]} 16. b3 {[%clk 0:01:31.2]} 16... Nb8
{[%clk 0:02:35]} 17. Bb2 {[%clk 0:01:29.1]} 17... Qd7 {[%clk 0:02:34.6]} 18. e4
{[%clk 0:01:23.6]} 18... Bb7 {[%clk 0:02:33.6]} 19. Qc3 {[%clk 0:01:14.2]} 19...
f6 {[%clk 0:02:32.2]} 20. e5 {[%clk 0:01:11.7]} 20... Bxg2 {[%clk 0:02:30.8]}
21. Kxg2 {[%clk 0:01:13.6]} 21... f5 {[%clk 0:02:31.4]} 22. f4 {[%clk
0:01:09.5]} 22... Qc6+ {[%clk 0:02:30.1]} 23. Qf3 {[%clk 0:01:09]} 23... Nd7
{[%clk 0:02:29]} 24. Bc3 {[%clk 0:01:04.8]} 24... Kf7 {[%clk 0:02:26.4]} 25. Kf2
{[%clk 0:00:58.9]} 25... Qxf3+ {[%clk 0:02:25.2]} 26. Kxf3 {[%clk 0:01:00.8]}
26... Rc6 {[%clk 0:02:25.3]} 27. h4 {[%clk 0:00:54.7]} 27... h5 {[%clk
0:02:24.5]} 28. Bd2 {[%clk 0:00:54.4]} 28... a6 {[%clk 0:02:25]} 29. Be3 {[%clk
0:00:54.4]} 29... Rfc8 {[%clk 0:02:24.6]} 30. Rdc1 {[%clk 0:00:52.7]} 30... Ke8
{[%clk 0:02:25.2]} 31. Ke2 {[%clk 0:00:52.5]} 31... Nb8 {[%clk 0:02:17.1]} 32.
Rc2 {[%clk 0:00:50.2]} 32... g6 {[%clk 0:02:16.5]} 33. Rac1 {[%clk 0:00:48.1]}
33... a5 {[%clk 0:02:11.6]} 34. Rc4 {[%clk 0:00:44.5]} 34... Kd7 {[%clk
0:02:10.8]} 35. Ra1 {[%clk 0:00:40.6]} 35... Na6 {[%clk 0:02:11]} 36. Bd2 {[%clk
0:00:40.1]} 36... Rg8 {[%clk 0:02:11.4]} 37. Be1 {[%clk 0:00:40.1]} 37... Rcc8
{[%clk 0:02:12.3]} 38. Bd2 {[%clk 0:00:39.5]} 38... Nb8 {[%clk 0:02:13.2]} 39.
Bc3 {[%clk 0:00:38.7]} 39... Nc6 {[%clk 0:02:14.1]} 40. Kd2 {[%clk 0:00:38.9]}
40... Rb8 {[%clk 0:02:15]} 41. Kc2 {[%clk 0:00:38.4]} 41... Rb7 {[%clk
0:02:15.9]} 42. Ra3 {[%clk 0:00:37.9]} 42... Rc8 {[%clk 0:02:15]} 43. Ra1 {[%clk
0:00:37.2]} 43... Nb8 {[%clk 0:01:45.4]} 44. Ra2 {[%clk 0:00:35.7]} 44... Na6
{[%clk 0:01:45]} 45. Ra1 {[%clk 0:00:36.4]} 45... Rcb8 {[%clk 0:01:45.5]} 46.
Ra3 {[%clk 0:00:36.5]} 46... Rc8 {[%clk 0:01:40.9]} 47. Ra1 {[%clk 0:00:37.1]}
47... Rc6 {[%clk 0:01:41.8]} 48. Bd2 {[%clk 0:00:36.9]} 48... Rb8 {[%clk
0:01:42.9]} 49. Be1 {[%clk 0:00:37.7]} 49... Rbc8 {[%clk 0:01:42.5]} 50. Kb2
{[%clk 0:00:37.7]} 50... Rb8 {[%clk 0:01:37.6]} 1/2-1/2

[Event "*** Biggest EVER Titled Tuesday"]
[Site "Chess.com"]
[Date "2018.04.17"]
[Round "8"]
[White "Mikhail_Golubev"]
[Black "SelfishShellfish"]
[Result "0-1"]
[WhiteElo "2352"]
[BlackElo "2191"]
[TimeControl "180+2"]
[EndTime "14:51:29 PDT"]
[Termination "SelfishShellfish won by resignation"]

1. e4 {[%clk 0:03:01.9]} 1... e6 {[%clk 0:03:00.9]} 2. d4 {[%clk 0:03:01.7]}
2... d5 {[%clk 0:03:02.8]} 3. Nc3 {[%clk 0:03:01.5]} 3... Nf6 {[%clk 0:03:03.3]}
4. Bg5 {[%clk 0:03:01]} 4... dxe4 {[%clk 0:03:04]} 5. Nxe4 {[%clk 0:03:00.7]}
5... Be7 {[%clk 0:03:05.4]} 6. Nxf6+ {[%clk 0:03:00]} 6... Bxf6 {[%clk
0:03:06.1]} 7. Bxf6 {[%clk 0:02:57.4]} 7... Qxf6 {[%clk 0:03:08]} 8. Qd2 {[%clk
0:02:58.2]} 8... c5 {[%clk 0:03:07.7]} 9. O-O-O {[%clk 0:02:55.3]} 9... cxd4
{[%clk 0:03:02]} 10. Nf3 {[%clk 0:02:52.5]} 10... Nc6 {[%clk 0:03:02.7]} 11. Bb5
{[%clk 0:02:41.8]} 11... O-O {[%clk 0:03:03.1]} 12. Bxc6 {[%clk 0:02:41.9]}
12... bxc6 {[%clk 0:03:05]} 13. Nxd4 {[%clk 0:02:41.9]} 13... c5 {[%clk
0:02:54.2]} 14. Nb5 {[%clk 0:02:27.5]} 14... Rb8 {[%clk 0:02:50]} 15. Nc3 {[%clk
0:02:26.6]} 15... Bb7 {[%clk 0:02:13.4]} 16. Qe3 {[%clk 0:02:25.9]} 16... Bxg2
{[%clk 0:02:06.1]} 17. Rhg1 {[%clk 0:02:26.9]} 17... Bd5 {[%clk 0:02:07.5]} 18.
Rg5 {[%clk 0:01:25.4]} 18... g6 {[%clk 0:01:40.1]} 19. Re5 {[%clk 0:01:16.1]}
19... Rfd8 {[%clk 0:01:17.8]} 20. b3 {[%clk 0:01:00.6]} 20... c4 {[%clk
0:00:49.7]} 21. Nxd5 {[%clk 0:00:29.4]} 21... exd5 {[%clk 0:00:47.7]} 22. Rdxd5
{[%clk 0:00:28]} 22... Rxd5 {[%clk 0:00:34.4]} 23. Rxd5 {[%clk 0:00:28.9]} 23...
Qa1+ {[%clk 0:00:33.1]} 24. Kd2 {[%clk 0:00:29.6]} 24... Qxa2 {[%clk 0:00:27.7]}
25. Qf4 {[%clk 0:00:27.6]} 25... Rf8 {[%clk 0:00:24.2]} 26. Qxc4 {[%clk
0:00:27.6]} 26... Qa1 {[%clk 0:00:17]} 27. Qd4 {[%clk 0:00:25.8]} 27... Qa6
{[%clk 0:00:09.7]} 28. Rd8 {[%clk 0:00:24.4]} 28... Qa5+ {[%clk 0:00:08.7]} 0-1

[Event "*** Biggest EVER Titled Tuesday"]
[Site "Chess.com"]
[Date "2018.04.17"]
[Round "8"]
[White "DryCounty"]
[Black "vovachesss"]
[Result "0-1"]
[WhiteElo "2499"]
[BlackElo "2375"]
[TimeControl "180+2"]
[EndTime "14:51:29 PDT"]
[Termination "vovachesss won by resignation"]

1. Nf3 {[%clk 0:03:01.9]} 1... Nc6 {[%clk 0:02:48.7]} 2. e4 {[%clk 0:03:00.9]}
2... d5 {[%clk 0:02:45.5]} 3. exd5 {[%clk 0:03:00.8]} 3... Qxd5 {[%clk
0:02:47.4]} 4. Nc3 {[%clk 0:03:01.3]} 4... Qd6 {[%clk 0:02:44.4]} 5. d4 {[%clk
0:02:59.9]} 5... Nf6 {[%clk 0:02:44.1]} 6. g3 {[%clk 0:02:57.7]} 6... Bg4 {[%clk
0:02:42.7]} 7. Bg2 {[%clk 0:02:57.4]} 7... O-O-O {[%clk 0:02:40.1]} 8. O-O
{[%clk 0:02:57.4]} 8... Nxd4 {[%clk 0:02:35.9]} 9. Qxd4 {[%clk 0:02:50.6]} 9...
Qxd4 {[%clk 0:02:36.4]} 10. Nxd4 {[%clk 0:02:51.4]} 10... Rxd4 {[%clk
0:02:38.3]} 11. Be3 {[%clk 0:02:51.7]} 11... Rd8 {[%clk 0:02:17.7]} 12. Nb5
{[%clk 0:02:44.3]} 12... a6 {[%clk 0:02:10.8]} 13. Na7+ {[%clk 0:02:11.7]} 13...
Kb8 {[%clk 0:02:11.2]} 14. h3 {[%clk 0:02:10.3]} 14... Bf5 {[%clk 0:02:09.7]}
15. Rfd1 {[%clk 0:02:10.5]} 15... Rd7 {[%clk 0:01:51]} 16. g4 {[%clk 0:02:09]}
16... Be6 {[%clk 0:01:41.8]} 17. c4 {[%clk 0:01:40.2]} 17... g5 {[%clk
0:01:34.7]} 18. c5 {[%clk 0:01:11]} 18... Rxd1+ {[%clk 0:01:21.4]} 19. Rxd1
{[%clk 0:01:10.9]} 19... Kxa7 {[%clk 0:01:22.9]} 20. Bxg5 {[%clk 0:00:41.9]}
20... Bg7 {[%clk 0:01:19.1]} 21. Bf4 {[%clk 0:00:42.7]} 21... c6 {[%clk
0:01:18.6]} 22. Be5 {[%clk 0:00:38.9]} 22... Rg8 {[%clk 0:01:13.6]} 23. f4
{[%clk 0:00:35]} 23... Bd5 {[%clk 0:01:10.5]} 24. Bf1 {[%clk 0:00:23.8]} 24...
Ne4 {[%clk 0:01:09.2]} 25. Bxg7 {[%clk 0:00:23.9]} 25... Rxg7 {[%clk 0:01:11]}
26. b4 {[%clk 0:00:23.6]} 26... h5 {[%clk 0:01:03.6]} 27. g5 {[%clk 0:00:22.3]}
27... h4 {[%clk 0:01:04.5]} 28. Bd3 {[%clk 0:00:18.7]} 28... f6 {[%clk
0:01:03.2]} 29. Re1 {[%clk 0:00:19.1]} 29... Nd2 {[%clk 0:00:56.9]} 30. Kf2
{[%clk 0:00:14.8]} 30... fxg5 {[%clk 0:00:57.9]} 31. f5 {[%clk 0:00:07.4]} 31...
g4 {[%clk 0:00:50.8]} 32. Ke3 {[%clk 0:00:07.5]} 32... gxh3 {[%clk 0:00:49.3]}
33. Kxd2 {[%clk 0:00:08.3]} 33... h2 {[%clk 0:00:50.7]} 0-1